bitfinex-derivatives/quotes_ETHF0:USTF0_20250616
["timestamp","ask_amount","ask_price","bid_price","bid_amount"]
[1750036785915,0.79095,2528.2,2528.0,0.79097]
[1750036786119,0.79096,2528.1,2527.9,8.15]
[1750036786623,0.79096,2528.1,2528.0,0.79099]
[1750036787719,0.79094,2528.2,2528.1,0.79093]
[1750036787920,6.75491,2528.3,2528.2,0.79093]
[1750036788119,0.79091,2528.3,2528.2,0.79093]
[1750036788716,0.79096,2528.1,2528.0,1.96877]
[1750036788915,3.08571,2528.5,2528.0,8.5358]
[1750036789119,0.79102,2527.9,2527.8,7.36394401]
[1750036789423,3.2078,2528.1,2527.8,7.36394401]
[1750036789628,11.7088,2528.4,2528.0,0.79097]
[1750036789822,0.79096,2528.1,2528.0,0.79097]
[1750036790218,0.79095,2528.2,2528.1,0.79095]
[1750036790620,0.79097,2528.1,2528.0,0.79097]
[1750036790821,0.79097,2528.1,2528.0,8.14897]
[1750036792329,5.0,2528.1,2527.8,0.00594401]
[1750036792527,0.79102,2527.9,2527.8,0.79698401]
[1750036793024,0.79102,2527.9,2527.8,0.00594401]
[1750036793622,0.79102,2527.9,2527.8,0.79699401]
[1750036793827,0.79102,2527.9,2527.8,0.00594401]
[1750036794028,0.79102,2527.9,2527.8,0.79699401]
[1750036794229,0.79102,2527.9,2527.8,0.00594401]
[1750036796023,0.79102,2527.9,2527.8,0.79699401]
[1750036797133,3.2078,2528.1,2528.0,0.79099]
[1750036797331,3.99876,2528.1,2528.0,8.14899]
[1750036798227,3.2078,2528.1,2528.0,8.14899]
[1750036798626,3.99876,2528.1,2528.0,8.14899]
[1750036799424,3.99876,2528.1,2527.8,4.52297766]
[1750036799425,3.2078,2528.1,2527.8,4.52297766]
[1750036799731,7.65259,2528.4,2527.9,7.358]
[1750036800031,7.65259,2528.4,2528.0,0.79099]
[1750036800332,0.79097,2528.1,2528.0,0.79098]
[1750036801119,0.79099,2528.0,2527.9,26.778]
[1750036801324,0.79099,2528.0,2527.9,34.135]
[1750036801532,0.79099,2528.0,2527.9,8.148]
[1750036801730,0.79097,2528.1,2528.0,0.79098]
[1750036801938,0.7909,2528.3,2528.2,0.7909]
[1750036802129,6.46629,2528.4,2528.3,0.79089]
[1750036802330,5.19459,2528.4,2528.3,8.14789]
[1750036802722,0.79085,2528.5,2528.4,0.79086]
[1750036802929,9.1718,2529.0,2528.4,4.51703365]
[1750036803230,0.79076,2528.8,2528.6,0.79077]
[1750036803425,0.79076,2528.8,2528.7,7.357]
[1750036803630,0.79076,2528.8,2528.7,8.14777]
[1750036803827,0.79076,2528.8,2528.7,7.357]
[1750036804229,0.79074,2528.8,2528.7,7.357]
[1750036804437,1.03674215,2528.8,2528.2,4.4311]
[1750036804636,0.79085,2528.5,2528.4,0.79086]
[1750036804831,5.5647,2529.0,2528.8,0.79071]
[1750036804832,1.89478,2529.0,2528.8,0.79071]
[1750036805023,0.79066,2529.1,2528.9,0.79071]
[1750036805335,0.79068,2529.0,2528.8,7.357]
[1750036805522,0.79066,2529.1,2528.9,0.79069]
[1750036805928,0.79063,2529.2,2529.0,0.79066]
[1750036806132,1.03621235,2529.1,2529.0,0.79066]
[1750036806428,0.79063,2529.2,2529.0,0.79066]
[1750036806625,0.79067,2529.1,2528.8,12.9375]
[1750036806825,0.79067,2529.1,2529.0,0.79068]
[1750036807135,0.79063,2529.2,2529.0,0.79068]
[1750036807533,0.79064,2529.1,2528.9,0.79069]
[1750036807832,0.79068,2529.0,2528.8,13.72822]
[1750036808130,0.79071,2528.9,2528.8,12.9375]
[1750036808328,0.79065,2529.1,2528.8,12.9375]
[1750036808738,0.79065,2529.1,2528.9,0.79071]
[1750036808937,0.79063,2529.2,2529.0,0.79068]
[1750036809137,5.10249,2529.3,2529.1,0.79064]
[1750036809437,3.9984,2529.3,2529.1,0.79064]
[1750036809645,0.7906,2529.3,2529.1,0.79062]
[1750036809837,0.7906,2529.3,2529.2,7.323]
[1750036809838,0.79059,2529.3,2529.2,7.323]
[1750036810140,6.9705,2529.6,2529.2,7.323]
[1750036810141,6.9705,2529.6,2529.4,0.79055]
[1750036810336,0.79052,2529.5,2529.4,0.79055]
[1750036810530,3.2078,2529.6,2529.3,1.2024]
[1750036810730,3.2078,2529.6,2529.5,0.79052]
[1750036811434,3.99829,2529.6,2529.5,0.79052]
[1750036811649,3.2078,2529.6,2529.5,0.79052]
[1750036811932,3.2078,2529.9,2529.4,27.0831]
[1750036812136,3.2078,2529.9,2529.8,0.79043]
[1750036812334,3.2078,2529.9,2529.8,8.11343]
[1750036812529,3.99811,2530.2,2529.8,9.32313]
[1750036812741,3.99811,2530.2,2530.0,0.79036]
[1750036812930,0.79036,2530.1,2529.9,0.79039]
[1750036813130,0.79036,2530.1,2529.9,0.79037]
[1750036813432,3.99812,2530.2,2530.0,0.79036]
[1750036813635,3.2078,2530.2,2530.1,0.79033]
[1750036814138,3.2078,2530.2,2530.1,1.98353]
[1750036814435,3.9981,2530.2,2530.1,7.322]
[1750036814645,3.2078,2530.2,2530.1,7.322]
[1750036814941,3.9981,2530.2,2530.1,7.322]
[1750036815137,1.97592,2530.0,2529.6,23.918]
[1750036815333,0.79049,2529.6,2529.5,7.322]
[1750036815735,3.99829,2529.6,2529.5,7.322]
[1750036816144,3.99829,2529.6,2529.2,0.00593214]
[1750036816145,0.79058,2529.3,2529.2,0.00593214]
[1750036816343,3.99838,2529.3,2529.2,0.00593214]
[1750036816728,3.99838,2529.3,2528.8,23.914]
[1750036816729,0.79071,2528.9,2528.8,23.914]
[1750036816933,1.97658,2529.2,2528.7,3.2078]
[1750036816934,0.79074,2528.8,2528.7,3.2078]
[1750036819645,0.79074,2528.8,2528.7,10.5288]
[1750036821345,0.7908,2528.6,2528.5,0.00593214]
[1750036821637,0.7908,2528.6,2528.5,7.32693214]
[1750036821948,0.7908,2528.6,2528.5,8.11776214]
[1750036822244,0.79079,2528.7,2528.5,8.11775214]
[1750036822840,3.21369257,2529.0,2528.5,8.11775214]
[1750036823047,0.7908,2528.7,2528.6,7.321]
[1750036823543,1.2555,2528.9,2528.6,8.1118]
[1750036823749,1.2555,2528.9,2528.6,7.321]
[1750036824048,0.79075,2528.8,2528.7,0.79075]
[1750036824447,0.79077,2528.7,2528.6,7.321]
[1750036824748,0.79071,2528.9,2528.8,0.79071]
[1750036825048,3.21369257,2529.0,2528.8,0.79071]
[1750036825049,0.79659257,2529.0,2528.8,0.79071]
[1750036825253,0.00589257,2529.0,2528.9,5.30774365]
[1750036825948,0.00589257,2529.0,2528.9,12.62874365]
[1750036826348,0.00589257,2529.0,2528.7,3.2078]
[1750036826540,0.00589257,2529.0,2528.8,7.321]
[1750036826746,0.79660257,2529.0,2528.8,8.11173]
[1750036826947,0.00589257,2529.0,2528.9,0.79071]
[1750036828752,0.00589257,2529.0,2528.9,2.13541]
[1750036829154,0.79071,2528.9,2528.8,8.11172]
[1750036829346,0.79659257,2529.0,2528.9,0.79071]
[1750036829852,0.00589257,2529.0,2528.9,0.79071]
[1750036830044,0.79657257,2529.0,2528.9,0.79071]
[1750036830954,0.00589257,2529.0,2528.9,0.79071]
[1750036831150,0.00589257,2529.0,2528.9,6.65244365]
[1750036831850,1.1838,2529.7,2528.9,5.86173365]
[1750036831851,6.75451,2529.6,2528.9,5.86173365]
[1750036832159,0.79056,2529.4,2529.1,0.79063]
[1750036832846,2.07134,2529.5,2529.2,0.79061]
[1750036833253,2.07134,2529.5,2529.3,0.79058]
[1750036833452,1.2808,2529.5,2529.4,7.321]
[1750036833655,2.07132,2529.5,2529.4,7.321]
[1750036834256,4.3916,2529.7,2529.4,7.321]
[1750036834450,4.3916,2529.7,2529.5,0.79051]
[1750036834664,3.2078,2529.7,2529.6,0.79049]
[1750036834954,3.2078,2529.7,2529.5,0.7905]
[1750036835151,3.99826,2529.7,2529.5,0.7905]
[1750036835356,0.79049,2529.6,2529.5,7.321]
[1750036835560,2.07309,2529.6,2529.5,7.321]
[1750036835855,0.79054,2529.5,2529.4,7.321]
[1750036836054,2.07314,2529.5,2529.4,7.321]
[1750036837260,0.79061,2529.3,2529.1,23.916]
[1750036837465,0.79061,2529.2,2529.1,31.203]
[1750036837861,3.2078,2529.3,2528.9,3.2078]
[1750036838068,0.79068,2529.0,2528.9,3.2078]
[1750036838965,0.79074,2528.8,2528.7,7.287]
[1750036840459,0.7908,2528.6,2528.5,0.00593214]
[1750036840768,0.79093,2528.2,2528.1,7.288]
[1750036840970,3.99873,2528.2,2528.1,7.288]
[1750036841169,0.79105,2527.9,2527.8,7.288]
[1750036841564,0.79108,2527.7,2527.6,1.21233214]
[1750036841769,0.79108,2527.7,2527.6,7.29393214]
[1750036842666,1.97538,2527.7,2527.6,0.00593214]
[1750036843662,0.79118,2527.4,2527.3,7.289]
[1750036844466,2.13778,2527.4,2527.3,7.289]
[1750036844770,0.79124,2527.2,2527.1,0.00593214]
[1750036845271,5.964,2527.3,2527.1,0.00593214]
[1750036845477,0.79124,2527.2,2527.1,0.00593214]
[1750036845675,3.99904,2527.2,2527.1,0.00593214]
[1750036846078,5.34564,2527.2,2527.1,0.00593214]
[1750036849373,3.2078,2527.2,2527.1,0.00593214]
[1750036849770,3.99904,2527.2,2527.1,0.00593214]
[1750036849970,5.28534,2527.2,2527.1,0.00593214]
[1750036851474,11.24934,2527.2,2527.1,0.00593214]
[1750036851871,16.24934,2527.2,2527.1,0.00593214]
[1750036852073,16.24934,2527.2,2526.2,8.4938]
[1750036852074,0.79151,2526.4,2526.2,8.4938]
[1750036852275,0.79152,2526.3,2526.2,7.292]
[1750036852470,0.79152,2526.3,2525.9,1.1902]
[1750036852471,1.2884,2526.3,2525.9,7.292]
[1750036852689,3.9993,2526.4,2526.1,0.79157]
[1750036852881,3.9993,2526.4,2526.0,0.79159]
[1750036853184,4.00524214,2526.4,2526.1,0.79158]
[1750036853385,3.21373214,2526.4,2525.9,8.65063214]
[1750036853582,0.00593214,2526.4,2526.3,0.79152]
[1750036853780,3.21373214,2526.4,2526.2,2.392]
[1750036853980,0.00593214,2526.4,2526.3,7.292]
[1750036854581,3.21373214,2526.4,2526.3,7.292]
[1750036854882,3.21373214,2526.4,2525.9,0.79755214]
[1750036855079,2.6081,2526.3,2525.9,0.79757214]
[1750036855386,0.7916,2526.1,2525.9,0.00593214]
[1750036855885,0.79161,2526.0,2525.9,0.00593214]
[1750036856187,3.99941,2526.0,2525.9,0.00593214]
[1750036858284,8.99941,2526.0,2525.9,0.00593214]
[1750036858483,0.79177,2525.5,2525.4,1.3032]
[1750036858787,0.79179,2525.5,2525.2,7.294]
[1750036859084,0.79187,2525.2,2525.1,3.2078]
[1750036859291,3.99965,2525.3,2525.0,2.07592]
[1750036859681,3.99965,2525.3,2525.1,0.7919]
[1750036859885,0.79187,2525.2,2525.0,2.07591]
[1750036860291,0.79193,2525.0,2524.9,0.00593214]
[1750036860588,3.2078,2525.0,2524.9,0.00593214]
[1750036860781,3.99973,2525.0,2524.9,0.00593214]
[1750036861184,3.2078,2525.0,2524.9,0.00593214]
[1750036861384,3.99973,2525.0,2524.9,0.00593214]
[1750036862488,3.2078,2525.0,2524.9,0.00593214]
[1750036862688,3.99973,2525.0,2524.9,0.00593214]
[1750036864286,3.2078,2525.0,2524.4,2.0761]
[1750036864491,0.79214,2524.3,2524.2,7.297]
[1750036864691,3.2078,2524.4,2524.2,8.08917]
[1750036864889,3.2078,2524.4,2524.3,0.79214]
[1750036865088,3.2078,2525.5,2524.5,1.98021]
[1750036865296,0.00593214,2525.3,2525.2,0.79186]
[1750036865798,3.2078,2526.0,2525.5,0.79176]
[1750036865998,3.2078,2525.7,2525.3,8.4531]
[1750036866187,3.99952,2525.7,2525.3,1.1561]
[1750036866387,3.2078,2525.7,2525.3,1.1561]
[1750036866790,3.2078,2525.7,2525.5,0.79175]
[1750036867089,3.2078,2525.7,2525.3,1.1561]
[1750036867397,3.2078,2525.7,2525.6,0.79174]
[1750036868189,3.2078,2525.7,2525.5,0.79176]
[1750036868390,3.2078,2525.7,2525.6,0.79174]
[1750036869196,3.2078,2525.7,2525.5,0.79176]
[1750036869396,3.2078,2525.7,2525.6,0.79174]
[1750036869894,0.00593214,2525.8,2525.7,0.79171]
[1750036870093,0.00593214,2525.8,2525.7,2.5852]
[1750036870297,0.00593214,2525.8,2525.7,1.2913]
[1750036870494,0.79761214,2525.8,2525.7,1.2913]
[1750036871199,0.79178,2525.5,2525.4,7.265]
[1750036871390,0.00593214,2525.8,2525.4,7.265]
[1750036871592,0.00593214,2525.8,2525.7,0.79171]
[1750036871993,0.00593214,2525.8,2525.7,2.15561]
[1750036875503,0.79152,2526.3,2526.1,0.79158]
[1750036875897,9.1718,2526.4,2525.9,11.78203365]
[1750036876200,6.7555,2526.4,2526.2,0.79153]
[1750036876389,6.7555,2526.4,2526.2,0.79156]
[1750036876390,6.75551,2526.4,2526.2,0.79156]
[1750036877000,6.75551,2526.4,2526.0,2.49103214]
[1750036877204,6.75551,2526.4,2526.2,0.79154]
[1750036877704,0.00593214,2526.6,2526.1,3.2078]
[1750036877901,0.00593214,2526.6,2526.5,5.30849365]
[1750036878199,0.00593214,2526.6,2526.5,8.51629365]
[1750036879006,0.00593214,2526.6,2526.5,9.87159365]
[1750036879500,0.00593214,2526.6,2526.5,5.35456]
[1750036880304,0.00593214,2526.6,2526.5,12.61856]
[1750036880902,0.79736214,2526.6,2526.5,4.5631]
[1750036881101,0.79736214,2526.6,2526.5,10.4718]
[1750036881303,0.00593214,2526.6,2526.5,11.26326]
[1750036881603,0.00593214,2526.6,2526.5,12.52486]
[1750036882305,3.99909,2527.1,2526.9,0.79134]
[1750036882505,3.99909,2527.1,2526.9,8.05534]
[1750036882706,0.79132,2527.0,2526.9,7.264]
[1750036882902,3.9991,2527.1,2526.9,8.05535]
[1750036883307,3.2078,2527.1,2527.0,0.79132]
[1750036883507,0.00593214,2527.3,2527.2,0.79126]
[1750036884005,0.79715214,2527.3,2527.1,0.79127]
[1750036884208,0.00593214,2527.3,2527.2,0.79126]
[1750036884402,0.00593214,2527.3,2527.1,0.79127]
[1750036884599,0.79126,2527.2,2527.0,3.7036]
[1750036884801,3.2078,2527.2,2526.6,3.2078]
[1750036885001,0.79718214,2527.3,2526.8,4.51703365]
[1750036885201,0.00593214,2527.3,2527.2,0.79126]
[1750036885407,0.79126,2527.2,2527.1,7.263]
[1750036886116,0.79124,2527.3,2527.1,8.05426]
[1750036886608,1.97788,2527.6,2527.1,7.263]
[1750036886808,0.79126,2527.2,2527.1,8.05428]
[1750036887108,0.79125,2527.3,2527.1,8.05428]
[1750036887410,1.98381214,2527.6,2527.1,8.05428]
[1750036887802,0.79126,2527.2,2527.1,8.05428]
[1750036888507,0.79126,2527.2,2527.1,7.263]
[1750036889006,0.79126,2527.2,2527.0,3.99911]
[1750036889205,0.79126,2527.2,2527.1,7.262]
[1750036889606,0.79141,2526.7,2526.6,11.6703]
[1750036889804,0.79141,2526.7,2526.6,3.2078]
[1750036890502,0.79141,2526.7,2526.3,3.2078]
[1750036890503,0.79151,2526.4,2526.3,3.2078]
[1750036891511,8.28351,2526.4,2526.3,3.2078]
[1750036891810,0.7916,2526.1,2526.0,0.00593214]
[1750036892307,3.9994,2526.1,2526.0,0.00593214]
[1750036892506,0.7916,2526.1,2526.0,0.00593214]
[1750036895006,4.4741,2526.2,2526.0,0.00593214]
[1750036895211,3.2078,2526.2,2526.1,5.30863365]
[1750036895412,0.00593214,2526.3,2526.2,0.79157]
[1750036895601,0.00593214,2526.3,2526.2,8.05357]
[1750036896005,0.00593214,2526.3,2526.2,10.39377]
[1750036896407,0.79747214,2526.3,2526.2,7.263]
[1750036896607,0.00593214,2526.3,2526.2,7.263]
[1750036896810,0.00593214,2526.3,2526.2,8.05457]
[1750036897813,0.00593214,2526.3,2526.1,3.2078]
[1750036898014,0.00593214,2526.3,2526.2,7.232]
[1750036898212,0.00593214,2526.3,2526.2,8.02357]
[1750036898409,0.79747214,2526.3,2526.2,8.02357]
[1750036898610,0.79157,2526.2,2526.1,3.2078]
[1750036898811,3.21373214,2526.3,2526.0,0.00593214]
[1750036899011,1.3032,2526.1,2526.0,0.00593214]
[1750036899210,1.3032,2526.1,2526.0,0.79757214]
[1750036899907,0.00593214,2526.3,2526.2,0.79158]
[1750036900623,0.00593214,2526.3,2526.2,8.02358]
[1750036901119,2.4772,2526.8,2526.2,8.02358]
[1750036901309,1.3032,2527.1,2526.5,9.70351365]
[1750036901616,2.09451,2527.1,2526.6,11.1006]
[1750036901817,2.09451,2527.1,2527.0,0.79133]
[1750036902011,3.2078,2527.3,2526.7,0.7914]
[1750036902207,0.79144,2526.7,2526.5,3.99926]
[1750036902402,0.79137,2526.9,2526.5,3.2078]
[1750036902711,0.79137,2526.9,2526.7,0.7914]
[1750036902908,1.3333,2527.0,2526.8,3.2078]
[1750036903118,3.2078,2527.3,2527.0,0.79132]
[1750036903315,0.79128,2527.2,2527.1,0.7913]
[1750036903710,0.79126,2527.2,2527.1,0.7913]
[1750036904017,0.79126,2527.2,2527.0,0.7913]
[1750036904213,0.7913,2527.1,2526.9,0.79134]
[1750036904409,0.79133,2527.0,2526.9,0.79134]
[1750036904616,0.79131,2527.1,2526.9,8.02334]
[1750036904912,0.79128,2527.2,2527.1,0.7913]
[1750036905118,1.97785,2527.6,2527.0,0.79132]
[1750036905321,0.79131,2527.1,2526.9,9.30324]
[1750036905614,1.2791,2527.6,2526.9,7.232]
[1750036905814,0.79126,2527.3,2527.1,0.79128]
[1750036906018,0.79126,2527.2,2527.0,0.7913]
[1750036906213,1.2791,2527.6,2526.5,3.2078]
[1750036906214,3.2078,2527.1,2526.5,3.2078]
[1750036906410,3.2078,2527.1,2526.6,0.79145]
[1750036906411,0.79141,2526.8,2526.6,0.79145]
[1750036906712,0.79137,2526.9,2526.5,3.2078]
[1750036906908,0.79137,2526.9,2526.7,0.79139]
[1750036907318,0.79137,2526.9,2526.8,7.231]
[1750036907514,0.79137,2526.9,2526.8,8.02239]
[1750036908319,1.9864,2527.1,2527.0,0.79133]
[1750036908522,5.964,2527.2,2527.0,0.79133]
[1750036908817,5.964,2527.2,2527.1,0.79129]
[1750036909011,5.964,2527.2,2527.1,3.99909]
[1750036909618,5.964,2527.2,2527.1,5.30359]
[1750036909815,3.99892,2527.7,2527.1,6.49051]
[1750036910121,2.5148,2527.8,2527.5,0.79115]
[1750036910316,0.79114,2527.6,2527.5,0.79115]
[1750036910821,0.79109,2527.8,2527.7,0.79111]
[1750036911018,0.79115,2527.6,2527.4,3.21373214]
[1750036911218,4.372,2527.9,2527.5,7.231]
[1750036911420,0.79114,2527.6,2527.5,7.231]
[1750036912017,0.79117,2527.5,2527.4,0.00593214]
[1750036912811,1.2935,2527.8,2527.4,3.21373214]
[1750036913018,0.79116,2527.6,2527.4,4.00492214]
[1750036913217,1.2935,2527.8,2527.4,8.02712214]
[1750036913420,0.79116,2527.6,2527.4,8.02712214]
[1750036913724,0.79117,2527.5,2527.4,7.23593214]
[1750036914621,0.79117,2527.5,2527.4,8.02713214]
[1750036914923,4.5013,2527.8,2527.4,8.02713214]
[1750036915126,3.99889,2527.8,2527.4,7.23593214]
[1750036915317,3.99889,2527.8,2527.4,11.75296579]
[1750036915624,3.2078,2527.8,2527.7,0.79111]
[1750036915825,3.2078,2527.8,2527.5,1.3299]
[1750036915826,3.2078,2527.8,2527.6,0.79112]
[1750036916016,3.2078,2527.8,2527.5,7.23]
[1750036916222,3.2078,2527.8,2527.4,8.02711214]
[1750036916422,0.79116,2527.6,2527.4,8.02711214]
[1750036916622,0.79116,2527.6,2527.5,0.79117]
[1750036917125,0.79117,2527.5,2527.4,7.23593214]
[1750036917424,0.79117,2527.5,2527.4,0.00593214]
[1750036917625,0.79117,2527.5,2527.4,7.23493214]
[1750036918023,0.79117,2527.5,2527.4,8.02613214]
[1750036918421,1.97758,2528.0,2527.5,0.79115]
[1750036918724,1.3014,2527.9,2527.4,8.02611214]
[1750036918924,1.3014,2527.9,2527.5,0.79117]
[1750036919426,0.79116,2527.6,2527.5,0.79117]
[1750036919627,0.79113,2527.7,2527.6,0.79113]
[1750036919819,0.79109,2527.8,2527.7,0.7911]
[1750036920021,4.471,2528.1,2527.6,1.198]
[1750036920218,1.1655,2528.3,2527.8,3.2078]
[1750036920525,3.99871,2528.4,2528.3,0.79092]
[1750036920720,3.99871,2528.4,2528.0,4.51703365]
[1750036920721,0.79092,2528.3,2528.2,0.79093]
[1750036920923,3.2078,2528.4,2528.3,0.79092]
[1750036921121,0.79087,2528.5,2528.4,0.79089]
[1750036921320,3.37086,2528.6,2528.3,7.229]
[1750036921624,3.2078,2528.9,2528.5,3.2078]
[1750036921921,0.79078,2528.8,2528.5,3.2078]
[1750036922126,0.79078,2528.8,2528.7,0.79079]
[1750036922321,0.79083,2528.7,2528.5,0.79084]
[1750036922623,0.79083,2528.7,2528.2,3.2078]
[1750036922624,0.79092,2528.3,2528.2,3.2078]
[1750036922823,0.79092,2528.3,2528.2,7.229]
[1750036923130,0.79114,2527.6,2527.5,10.4368]
[1750036923322,0.79113,2527.7,2527.5,11.22797]
[1750036923517,0.79114,2527.6,2527.5,10.4368]
[1750036923933,0.79114,2527.6,2527.5,11.22797]
[1750036924539,0.79114,2527.6,2527.5,10.4368]
[1750036924832,0.79113,2527.7,2527.5,10.4368]
[1750036925040,0.79114,2527.6,2527.5,12.50655]
[1750036925241,0.79114,2527.6,2527.5,11.7154]
[1750036925730,0.79114,2527.6,2527.5,12.50657]
[1750036925930,0.79114,2527.6,2527.5,11.7154]
[1750036926536,0.79114,2527.6,2527.5,4.4864]
[1750036926833,0.79114,2527.6,2527.5,10.4358]
[1750036928531,5.828,2527.9,2527.5,10.4358]
[1750036928731,0.79106,2527.9,2527.5,14.95283365]
[1750036929039,4.4376,2528.2,2527.6,2.6628]
[1750036929243,1.2194,2528.4,2528.2,0.79094]
[1750036929440,0.79098,2528.1,2528.0,10.4088]
[1750036929741,0.79097,2528.2,2528.0,0.79099]
[1750036930037,0.79097,2528.2,2528.1,7.201]
[1750036930241,1.3444,2528.4,2527.8,4.51703365]
[1750036930242,0.79104,2527.9,2527.8,0.79107]
[1750036930436,0.79104,2527.9,2527.8,7.99207]
[1750036930738,0.79099,2528.1,2527.8,7.201]
[1750036930933,0.79101,2528.0,2527.9,0.79103]
[1750036931128,1.97727,2528.4,2527.7,3.2078]
[1750036931439,0.79103,2528.0,2527.9,0.79105]
[1750036931753,0.79101,2528.0,2527.9,0.79105]
[1750036932033,0.79101,2528.0,2527.8,7.201]
[1750036932034,0.79108,2527.8,2527.7,3.2078]
[1750036932241,5.18522,2528.2,2527.7,7.9921]
[1750036932440,1.3236,2528.1,2527.8,0.79107]
[1750036932643,0.79108,2527.8,2527.7,7.201]
[1750036932836,0.79108,2527.8,2527.7,7.99211]
[1750036933549,0.79108,2527.8,2527.7,7.201]
[1750036933846,0.79111,2527.7,2527.6,2.06922]
[1750036934046,0.7911,2527.8,2527.7,0.79111]
[1750036934348,0.79106,2527.9,2527.8,0.79107]
[1750036934538,0.79094,2528.3,2528.1,0.79095]
[1750036934736,0.79092,2528.3,2528.2,7.99194]
[1750036935049,0.79078,2528.8,2528.3,1.97731]
[1750036935243,3.99855,2528.9,2528.8,0.79076]
[1750036935847,1.1549,2529.1,2528.8,0.79076]
[1750036936046,0.79073,2528.9,2528.8,0.79076]
[1750036936245,0.79072,2529.0,2528.8,0.79076]
[1750036936443,0.79073,2528.9,2528.8,0.79076]
[1750036937157,0.79072,2529.0,2528.8,0.79076]
[1750036937638,3.2078,2529.3,2528.9,3.2078]
[1750036937847,0.7907,2529.0,2528.9,3.2078]
[1750036938153,3.2078,2529.3,2528.7,0.79672214]
[1750036938154,0.79076,2528.9,2528.7,0.79672214]
[1750036938345,0.79076,2528.9,2528.8,7.99176]
[1750036938648,3.99842,2529.3,2529.2,0.79064]
[1750036938845,3.99842,2529.3,2529.2,7.99064]
[1750036939436,3.99842,2529.3,2529.2,7.2]
[1750036941342,0.79067,2529.2,2529.1,7.199]
[1750036941648,3.99843,2529.3,2529.1,7.98967]
[1750036941850,3.99843,2529.3,2529.1,0.79067]
[1750036942042,0.79063,2529.3,2529.2,7.199]
[1750036943746,0.7907,2529.0,2528.9,2.00923]
[1750036943950,0.79069,2529.1,2528.9,9.20823]
[1750036944150,3.2078,2529.4,2529.0,0.7907]
[1750036944447,0.79062,2529.3,2529.2,0.79064]
[1750036944644,0.79062,2529.3,2529.1,0.79066]
[1750036945150,0.79064,2529.2,2529.0,2.10119]
[1750036945354,0.79067,2529.1,2529.0,0.79069]
[1750036945650,0.79069,2529.1,2529.0,7.199]
[1750036946840,0.79069,2529.1,2528.9,1.2185]
[1750036946841,0.79076,2528.8,2528.7,0.00593214]
[1750036948650,3.2078,2529.1,2528.7,0.00593214]
[1750036948856,0.79068,2529.1,2528.7,1.34283214]
[1750036949153,0.79068,2529.1,2528.9,0.79071]
[1750036949345,0.79068,2529.1,2529.0,7.198]
[1750036949742,0.79073,2528.9,2528.8,1.99046]
[1750036949955,0.79073,2528.9,2528.8,9.18846]
[1750036950147,0.79072,2529.0,2528.9,0.79073]
[1750036950353,0.79073,2528.9,2528.8,9.18844]
[1750036951049,5.964,2529.2,2529.1,0.79067]
[1750036952656,6.75464,2529.2,2529.1,0.79067]
[1750036952849,5.964,2529.2,2529.1,0.79067]
[1750036953252,0.7906,2529.4,2529.2,0.79063]
[1750036953452,0.7906,2529.4,2529.3,0.79061]
[1750036954552,0.79061,2529.3,2529.2,7.98861]
[1750036954754,1.97624,2529.7,2529.2,7.98861]
[1750036954755,0.79049,2529.7,2529.6,0.79051]
[1750036954952,3.2078,2529.8,2529.6,7.198]
[1750036955158,0.7905,2529.7,2529.6,0.79051]
[1750036955352,0.7905,2529.7,2529.6,7.98851]
[1750036955747,5.964,2529.9,2529.6,7.198]
[1750036955950,5.964,2529.9,2529.8,0.79045]
[1750036956146,1.1846,2530.1,2529.8,0.79043]
[1750036956353,0.79042,2529.9,2529.8,0.79043]
[1750036956551,2.4593,2530.1,2529.8,0.79043]
[1750036956756,0.79041,2530.0,2529.8,0.79043]
[1750036956957,0.79041,2530.0,2529.9,0.79042]
[1750036957153,0.79041,2530.0,2529.8,0.79043]
[1750036958056,0.79042,2529.9,2529.8,0.79043]
[1750036958355,2.4593,2530.1,2529.8,0.79043]
[1750036958559,0.79042,2529.9,2529.8,0.79043]
[1750036959962,0.79041,2530.0,2529.9,0.79042]
[1750036960364,2.4593,2530.1,2530.0,0.79039]
[1750036960657,1.194,2530.3,2530.0,11.68903365]
[1750036960854,3.2078,2530.6,2530.0,11.68903365]
[1750036960855,0.79036,2530.1,2530.0,11.17017]
[1750036961360,0.79035,2530.2,2530.1,0.79036]
[1750036961956,0.79036,2530.1,2530.0,12.34677]
[1750036962153,0.79035,2530.2,2530.0,12.34677]
[1750036962665,0.7903,2530.3,2530.2,0.79031]
[1750036962963,0.79033,2530.2,2530.1,0.79036]
[1750036963166,0.79032,2530.3,2530.1,0.79036]
[1750036963365,0.79032,2530.3,2530.2,0.79033]
[1750036963557,0.79032,2530.3,2530.1,0.79034]
[1750036963967,7.72483365,2530.3,2529.8,0.00593214]
[1750036964262,0.79036,2530.1,2529.9,0.7904]
[1750036964565,0.79039,2530.0,2529.9,0.7904]
[1750036964766,0.79042,2529.9,2529.8,7.96735214]
[1750036965166,0.79042,2529.9,2529.8,7.17693214]
[1750036965867,0.79042,2529.9,2529.8,7.96738214]
[1750036966366,0.79042,2529.9,2529.8,7.17693214]
[1750036967167,1.97642,2529.9,2529.8,7.17693214]
[1750036968567,1.97642,2529.9,2529.8,0.00593214]
[1750036969268,0.79041,2530.0,2529.8,0.00593214]
[1750036969476,3.2078,2530.3,2530.0,0.79039]
[1750036969674,3.2078,2530.3,2529.8,0.00593214]
[1750036969974,0.79039,2530.0,2529.9,0.7904]
[1750036970174,0.79037,2530.1,2530.0,0.79038]
[1750036971169,0.7904,2530.0,2529.9,0.79041]